[Event "Titled Tuesday Blitz August 1 Late 2023"]
[White "ChessSG1"]
[Black "Sokolovsky, Yahli"]
[BlackFideId "2820242"]
[WhiteElo "2462"]
[BlackElo "2668"]
[Result "1/2-1/2"]
[Round "3"]
[TimeControl "180+1"]
[Date "2023.08.01"]
[WhiteClock "0:00:15"]
[BlackClock "0:00:18"]
[Board "71"]

1. c4 {[%clk 0:03:00]}  d6 {[%clk 0:02:59]} 2. g3 {[%clk 0:02:56]}  e5 {[%clk 0:03:00]} 3. Bg2 {[%clk 0:02:56]}  Nc6 {[%clk 0:02:58]} 4. Nc3 {[%clk 0:02:56]}  Be6 {[%clk 0:02:58]} 5. d3 {[%clk 0:02:55]}  Qd7 {[%clk 0:02:59]} 6. Rb1 {[%clk 0:02:51]}  a5 {[%clk 0:02:55]} 7. a3 {[%clk 0:02:51]}  Nf6 {[%clk 0:02:51]} 8. e3 {[%clk 0:02:48]}  d5 {[%clk 0:02:48]} 9. cxd5 {[%clk 0:02:33]}  Nxd5 {[%clk 0:02:48]} 10. Nf3 {[%clk 0:02:30]}  Be7 {[%clk 0:02:41]} 11. O-O {[%clk 0:02:30]}  O-O {[%clk 0:02:32]} 12. d4 {[%clk 0:02:29]}  Rfd8 {[%clk 0:02:21]} 13. Nxd5 {[%clk 0:02:21]}  Bxd5 {[%clk 0:02:01]} 14. Nxe5 {[%clk 0:02:22]}  Nxe5 {[%clk 0:01:49]} 15. dxe5 {[%clk 0:02:23]}  Qf5 {[%clk 0:01:43]} 16. Bd2 {[%clk 0:01:34]}  Bxg2 {[%clk 0:01:36]} 17. Kxg2 {[%clk 0:01:35]}  Qxe5 {[%clk 0:01:37]} 18. Bc3 {[%clk 0:01:27]}  Qe4+ {[%clk 0:01:15]} 19. Qf3 {[%clk 0:01:27]}  Qxf3+ {[%clk 0:01:15]} 20. Kxf3 {[%clk 0:01:28]}  b5 {[%clk 0:01:14]} 21. Be5 {[%clk 0:01:20]}  c5 {[%clk 0:01:14]} 22. Rfd1 {[%clk 0:01:10]}  a4 {[%clk 0:01:13]} 23. Bc7 {[%clk 0:01:06]}  Rxd1 {[%clk 0:01:04]} 24. Rxd1 {[%clk 0:01:06]}  Bf6 {[%clk 0:01:03]} 25. Bb6 {[%clk 0:00:53]}  Rc8 {[%clk 0:01:03]} 26. Rd2 {[%clk 0:00:49]}  g6 {[%clk 0:00:56]} 27. Ke2 {[%clk 0:00:45]}  b4 {[%clk 0:00:52]} 28. Rc2 {[%clk 0:00:38]}  b3 {[%clk 0:00:48]} 29. Rd2 {[%clk 0:00:31]}  c4 {[%clk 0:00:48]} 30. Bd4 {[%clk 0:00:30]}  Bxd4 {[%clk 0:00:44]} 31. Rxd4 {[%clk 0:00:30]}  c3 {[%clk 0:00:11]} 32. bxc3 {[%clk 0:00:31]}  Rxc3 {[%clk 0:00:11]} 33. Rxa4 {[%clk 0:00:28]}  Rc2+ {[%clk 0:00:12]} 34. Kf3 {[%clk 0:00:28]}  Ra2 {[%clk 0:00:13]} 35. Ra8+ {[%clk 0:00:22]}  Kg7 {[%clk 0:00:14]} 36. a4 {[%clk 0:00:20]}  Kf6 {[%clk 0:00:14]} 37. Rb8 {[%clk 0:00:20]}  b2 {[%clk 0:00:15]} 38. a5 {[%clk 0:00:20]}  h5 {[%clk 0:00:14]} 39. h4 {[%clk 0:00:20]}  Ke6 {[%clk 0:00:12]} 40. a6 {[%clk 0:00:20]}  Rxa6 {[%clk 0:00:12]} 41. Rxb2 {[%clk 0:00:20]}  Kf6 {[%clk 0:00:13]} 42. Rd2 {[%clk 0:00:19]}  Rc6 {[%clk 0:00:13]} 43. Rd3 {[%clk 0:00:19]}  Rb6 {[%clk 0:00:14]} 44. e4 {[%clk 0:00:20]}  Rb5 {[%clk 0:00:14]} 45. Ke3 {[%clk 0:00:20]}  Rb4 {[%clk 0:00:14]} 46. Rd4 {[%clk 0:00:20]}  Rb3+ {[%clk 0:00:14]} 47. Rd3 {[%clk 0:00:20]}  Rb2 {[%clk 0:00:15]} 48. f3 {[%clk 0:00:19]}  Rb1 {[%clk 0:00:15]} 49. Rd6+ {[%clk 0:00:19]}  Ke5 {[%clk 0:00:15]} 50. Rd5+ {[%clk 0:00:19]}  Ke6 {[%clk 0:00:16]} 51. g4 {[%clk 0:00:19]}  hxg4 {[%clk 0:00:13]} 52. fxg4 {[%clk 0:00:19]}  Rh1 {[%clk 0:00:13]} 53. h5 {[%clk 0:00:13]}  gxh5 {[%clk 0:00:14]} 54. Rxh5 {[%clk 0:00:13]}  Rb1 {[%clk 0:00:13]} 55. Rh6+ {[%clk 0:00:13]}  Ke7 {[%clk 0:00:14]} 56. Kf4 {[%clk 0:00:13]}  Rb5 {[%clk 0:00:14]} 57. Rh5 {[%clk 0:00:12]}  Rb1 {[%clk 0:00:13]} 58. Ra5 {[%clk 0:00:12]}  Kf6 {[%clk 0:00:13]} 59. Ra6+ {[%clk 0:00:12]}  Kg7 {[%clk 0:00:14]} 60. Kf5 {[%clk 0:00:12]}  Rf1+ {[%clk 0:00:13]} 61. Ke5 {[%clk 0:00:09]}  Rf2 {[%clk 0:00:12]} 62. g5 {[%clk 0:00:08]}  Rf1 {[%clk 0:00:11]} 63. Ra7 {[%clk 0:00:03]}  Kg6 {[%clk 0:00:12]} 64. Ra6+ {[%clk 0:00:03]}  Kxg5 {[%clk 0:00:12]} 65. Ra7 {[%clk 0:00:03]}  Rf4 {[%clk 0:00:11]} 66. Kd5 {[%clk 0:00:02]}  Rf2 {[%clk 0:00:10]} 67. e5 {[%clk 0:00:02]}  Rd2+ {[%clk 0:00:09]} 68. Ke4 {[%clk 0:00:03]}  Re2+ {[%clk 0:00:09]} 69. Kd5 {[%clk 0:00:03]}  Kg6 {[%clk 0:00:09]} 70. Ra6+ {[%clk 0:00:03]}  Kg7 {[%clk 0:00:10]} 71. Ra7 {[%clk 0:00:03]}  Kf8 {[%clk 0:00:10]} 72. Ra8+ {[%clk 0:00:03]}  Kg7 {[%clk 0:00:09]} 73. Ra7 {[%clk 0:00:04]}  Rd2+ {[%clk 0:00:10]} 74. Ke4 {[%clk 0:00:04]}  Kg6 {[%clk 0:00:10]} 75. Ra6+ {[%clk 0:00:04]}  Kg5 {[%clk 0:00:10]} 76. Rf6 {[%clk 0:00:04]}  Rd7 {[%clk 0:00:10]} 77. Rf1 {[%clk 0:00:05]}  Kg6 {[%clk 0:00:09]} 78. Rg1+ {[%clk 0:00:05]}  Kh6 {[%clk 0:00:10]} 79. Kf5 {[%clk 0:00:05]}  Re7 {[%clk 0:00:08]} 80. Kf6 {[%clk 0:00:05]}  Re6+ {[%clk 0:00:09]} 81. Kxf7 {[%clk 0:00:05]}  Rxe5 {[%clk 0:00:09]} 82. Kf6 {[%clk 0:00:05]}  Rh5 {[%clk 0:00:03]} 83. Rg8 {[%clk 0:00:06]}  Kh7 {[%clk 0:00:03]} 84. Rg7+ {[%clk 0:00:06]}  Kh6 {[%clk 0:00:04]} 85. Rg6+ {[%clk 0:00:05]}  Kh7 {[%clk 0:00:04]} 86. Rg7+ {[%clk 0:00:06]}  Kh8 {[%clk 0:00:04]} 87. Ra7 {[%clk 0:00:05]}  Rh6+ {[%clk 0:00:02]} 88. Kg5 {[%clk 0:00:05]}  Rc6 {[%clk 0:00:03]} 89. Ra8+ {[%clk 0:00:06]}  Kg7 {[%clk 0:00:04]} 90. Ra7+ {[%clk 0:00:06]}  Kf8 {[%clk 0:00:04]} 91. Rb7 {[%clk 0:00:07]}  Rd6 {[%clk 0:00:04]} 92. Ra7 {[%clk 0:00:07]}  Ke8 {[%clk 0:00:05]} 93. Rb7 {[%clk 0:00:07]}  Ra6 {[%clk 0:00:06]} 94. Rc7 {[%clk 0:00:07]}  Kd8 {[%clk 0:00:06]} 95. Rh7 {[%clk 0:00:07]}  Ra1 {[%clk 0:00:06]} 96. Kf5 {[%clk 0:00:07]}  Re1 {[%clk 0:00:06]} 97. Kf6 {[%clk 0:00:08]}  Ke8 {[%clk 0:00:06]} 98. Rh8+ {[%clk 0:00:08]}  Kd7 {[%clk 0:00:07]} 99. Rh7+ {[%clk 0:00:09]}  Kd6 {[%clk 0:00:07]} 100. Rh3 {[%clk 0:00:09]}  Rf1+ {[%clk 0:00:08]} 101. Kg5 {[%clk 0:00:09]}  Ke6 {[%clk 0:00:08]} 102. Re3+ {[%clk 0:00:09]}  Kd5 {[%clk 0:00:09]} 103. Rd3+ {[%clk 0:00:10]}  Ke4 {[%clk 0:00:09]} 104. Ra3 {[%clk 0:00:10]}  Rg1+ {[%clk 0:00:09]} 105. Kf6 {[%clk 0:00:09]}  Rc1 {[%clk 0:00:10]} 106. Ra4+ {[%clk 0:00:10]}  Kd5 {[%clk 0:00:10]} 107. Ra5+ {[%clk 0:00:10]}  Kd4 {[%clk 0:00:11]} 108. Ra4+ {[%clk 0:00:11]}  Kc5 {[%clk 0:00:11]} 109. Ra5+ {[%clk 0:00:11]}  Kb6 {[%clk 0:00:12]} 110. Re5 {[%clk 0:00:11]}  Rf1+ {[%clk 0:00:12]} 111. Ke6 {[%clk 0:00:12]}  Kc6 {[%clk 0:00:13]} 112. Re2 {[%clk 0:00:12]}  Rc1 {[%clk 0:00:13]} 113. Rd2 {[%clk 0:00:12]}  Re1+ {[%clk 0:00:13]} 114. Kf6 {[%clk 0:00:11]}  Kc5 {[%clk 0:00:14]} 115. Rd3 {[%clk 0:00:12]}  Kc4 {[%clk 0:00:15]} 116. Rd8 {[%clk 0:00:12]}  Kc5 {[%clk 0:00:14]} 117. Rd2 {[%clk 0:00:12]}  Kc6 {[%clk 0:00:14]} 118. Rd8 {[%clk 0:00:12]}  Rf1+ {[%clk 0:00:13]} 119. Ke6 {[%clk 0:00:12]}  Rh1 {[%clk 0:00:14]} 120. Rd2 {[%clk 0:00:11]}  Rh6+ {[%clk 0:00:14]} 121. Kf5 {[%clk 0:00:12]}  Rh5+ {[%clk 0:00:15]} 122. Kg6 {[%clk 0:00:12]}  Rc5 {[%clk 0:00:14]} 123. Rd3 {[%clk 0:00:12]}  Rc4 {[%clk 0:00:15]} 124. Kf6 {[%clk 0:00:13]}  Kc5 {[%clk 0:00:15]} 125. Rd8 {[%clk 0:00:13]}  Rf4+ {[%clk 0:00:15]} 126. Ke5 {[%clk 0:00:13]}  Rf1 {[%clk 0:00:16]} 127. Rc8+ {[%clk 0:00:13]}  Kb6 {[%clk 0:00:17]} 128. Rc2 {[%clk 0:00:14]}  Re1+ {[%clk 0:00:17]} 129. Kd5 {[%clk 0:00:15]}  Kb5 {[%clk 0:00:17]} 130. Rb2+ {[%clk 0:00:15]}  Ka4 {[%clk 0:00:17]} 131. Kc4 {[%clk 0:00:15]}  Ka3 {[%clk 0:00:18]} 1/2-1/2


[Site "https://www.chess.com"]

[Event "Titled Tuesday Blitz August 1 Late 2023"]
[White "Lehtosaari, Mauri"]
[Black "Rastbod, Ali"]
[WhiteFideId "501999"]
[BlackFideId "12567477"]
[WhiteElo "2452"]
[BlackElo "2655"]
[Result "0-1"]
[Round "3"]
[TimeControl "180+1"]
[Date "2023.08.01"]
[WhiteClock "0:00:10"]
[BlackClock "0:00:06"]
[Board "75"]

1. d4 {[%clk 0:03:00]}  f5 {[%clk 0:02:41]} 2. Nf3 {[%clk 0:03:00]}  Nf6 {[%clk 0:02:39]} 3. Bf4 {[%clk 0:03:01]}  d6 {[%clk 0:02:39]} 4. e3 {[%clk 0:03:01]}  g6 {[%clk 0:02:39]} 5. Be2 {[%clk 0:03:02]}  Bg7 {[%clk 0:02:39]} 6. h3 {[%clk 0:03:02]}  O-O {[%clk 0:02:40]} 7. O-O {[%clk 0:03:03]}  h6 {[%clk 0:02:39]} 8. Bh2 {[%clk 0:03:02]}  g5 {[%clk 0:02:36]} 9. Nfd2 {[%clk 0:03:00]}  Qe8 {[%clk 0:02:35]} 10. c4 {[%clk 0:03:00]}  e5 {[%clk 0:02:34]} 11. Nc3 {[%clk 0:02:59]}  Nc6 {[%clk 0:02:18]} 12. dxe5 {[%clk 0:02:47]}  dxe5 {[%clk 0:02:11]} 13. Nd5 {[%clk 0:02:43]}  Qf7 {[%clk 0:02:08]} 14. Nxf6+ {[%clk 0:02:39]}  Qxf6 {[%clk 0:01:49]} 15. c5 {[%clk 0:02:28]}  Kh8 {[%clk 0:01:45]} 16. Qc2 {[%clk 0:02:24]}  Be6 {[%clk 0:01:42]} 17. Bc4 {[%clk 0:02:20]}  Bxc4 {[%clk 0:01:40]} 18. Nxc4 {[%clk 0:02:20]}  f4 {[%clk 0:01:41]} 19. Qe4 {[%clk 0:02:05]}  Qf5 {[%clk 0:01:32]} 20. Qxf5 {[%clk 0:02:03]}  Rxf5 {[%clk 0:01:33]} 21. Rad1 {[%clk 0:01:59]}  Rf7 {[%clk 0:01:33]} 22. b3 {[%clk 0:01:46]}  Kg8 {[%clk 0:01:14]} 23. Rfe1 {[%clk 0:01:35]}  Kf8 {[%clk 0:01:13]} 24. f3 {[%clk 0:01:31]}  Re7 {[%clk 0:01:06]} 25. e4 {[%clk 0:01:30]}  Ke8 {[%clk 0:01:00]} 26. Kf1 {[%clk 0:01:30]}  Rd8 {[%clk 0:01:00]} 27. Rxd8+ {[%clk 0:01:29]}  Nxd8 {[%clk 0:01:00]} 28. Rd1 {[%clk 0:01:26]}  Re6 {[%clk 0:00:57]} 29. Bg1 {[%clk 0:01:24]}  Nc6 {[%clk 0:00:56]} 30. Ke2 {[%clk 0:01:15]}  h5 {[%clk 0:00:55]} 31. Na3 {[%clk 0:01:11]}  a6 {[%clk 0:00:51]} 32. Nb1 {[%clk 0:01:09]}  Bf6 {[%clk 0:00:40]} 33. Nc3 {[%clk 0:01:09]}  Bd8 {[%clk 0:00:40]} 34. Nd5 {[%clk 0:01:03]}  Rg6 {[%clk 0:00:41]} 35. b4 {[%clk 0:00:54]}  g4 {[%clk 0:00:40]} 36. hxg4 {[%clk 0:00:51]}  hxg4 {[%clk 0:00:41]} 37. Bf2 {[%clk 0:00:49]}  g3 {[%clk 0:00:40]} 38. Bg1 {[%clk 0:00:48]}  Na7 {[%clk 0:00:32]} 39. a4 {[%clk 0:00:47]}  c6 {[%clk 0:00:33]} 40. Nc3 {[%clk 0:00:44]}  Nc8 {[%clk 0:00:25]} 41. Nb1 {[%clk 0:00:40]}  b6 {[%clk 0:00:22]} 42. cxb6 {[%clk 0:00:35]}  Bxb6 {[%clk 0:00:23]} 43. Bxb6 {[%clk 0:00:32]}  Nxb6 {[%clk 0:00:24]} 44. a5 {[%clk 0:00:30]}  Nc8 {[%clk 0:00:21]} 45. Rh1 {[%clk 0:00:29]}  Re6 {[%clk 0:00:10]} 46. Nd2 {[%clk 0:00:27]}  Nd6 {[%clk 0:00:06]} 47. Nb3 {[%clk 0:00:28]}  Nb5 {[%clk 0:00:07]} 48. Nc5 {[%clk 0:00:24]}  Rd6 {[%clk 0:00:05]} 49. Rh8+ {[%clk 0:00:23]}  Kf7 {[%clk 0:00:05]} 50. Rh5 {[%clk 0:00:20]}  Nc3+ {[%clk 0:00:05]} 51. Ke1 {[%clk 0:00:10]}  Rd1# {[%clk 0:00:06]} 0-1


[Site "https://www.chess.com"]

[Event "Titled Tuesday Blitz August 1 Late 2023"]
[White "D`Arruda, Ricardo D."]
[Black "Bjelobrk, Igor"]
[WhiteFideId "100692"]
[BlackFideId "4300726"]
[WhiteElo "2452"]
[BlackElo "2648"]
[Result "0-1"]
[Round "3"]
[TimeControl "180+1"]
[Date "2023.08.01"]
[WhiteClock "0:00:20"]
[BlackClock "0:00:37"]
[Board "76"]

1. d4 {[%clk 0:02:39]}  e6 {[%clk 0:02:58]} 2. e4 {[%clk 0:02:38]}  d5 {[%clk 0:02:58]} 3. Nc3 {[%clk 0:02:39]}  Bb4 {[%clk 0:02:56]} 4. Qg4 {[%clk 0:02:38]}  Nf6 {[%clk 0:02:48]} 5. Qxg7 {[%clk 0:02:37]}  Rg8 {[%clk 0:02:47]} 6. Qh6 {[%clk 0:02:38]}  Rg6 {[%clk 0:02:46]} 7. Qh4 {[%clk 0:02:35]}  Nxe4 {[%clk 0:02:43]} 8. Qxd8+ {[%clk 0:02:34]}  Kxd8 {[%clk 0:02:42]} 9. Ne2 {[%clk 0:02:34]}  b6 {[%clk 0:02:40]} 10. a3 {[%clk 0:02:20]}  Bxc3+ {[%clk 0:02:38]} 11. Nxc3 {[%clk 0:02:14]}  Nxc3 {[%clk 0:02:38]} 12. bxc3 {[%clk 0:02:14]}  Ba6 {[%clk 0:02:38]} 13. g3 {[%clk 0:02:10]}  Bxf1 {[%clk 0:02:37]} 14. Kxf1 {[%clk 0:02:11]}  Nc6 {[%clk 0:02:37]} 15. Kg2 {[%clk 0:02:11]}  Na5 {[%clk 0:02:37]} 16. h4 {[%clk 0:02:10]}  h5 {[%clk 0:02:36]} 17. Bg5+ {[%clk 0:02:10]}  Kd7 {[%clk 0:02:36]} 18. a4 {[%clk 0:02:09]}  Rc8 {[%clk 0:02:34]} 19. Rab1 {[%clk 0:02:01]}  c5 {[%clk 0:02:34]} 20. dxc5 {[%clk 0:01:59]}  Rxc5 {[%clk 0:02:33]} 21. Bd2 {[%clk 0:02:00]}  Nc4 {[%clk 0:02:31]} 22. Bc1 {[%clk 0:01:59]}  Nd6 {[%clk 0:02:29]} 23. Rb3 {[%clk 0:01:55]}  Ne4 {[%clk 0:02:28]} 24. Bb2 {[%clk 0:01:53]}  Kc6 {[%clk 0:02:09]} 25. Rd1 {[%clk 0:01:53]}  a5 {[%clk 0:02:04]} 26. Rd3 {[%clk 0:01:51]}  Kb7 {[%clk 0:01:47]} 27. Bc1 {[%clk 0:01:42]}  Rc4 {[%clk 0:01:44]} 28. Be3 {[%clk 0:01:42]}  Rc6 {[%clk 0:01:37]} 29. Bd4 {[%clk 0:01:30]}  f6 {[%clk 0:01:31]} 30. Be3 {[%clk 0:01:22]}  Rg8 {[%clk 0:01:29]} 31. Bd4 {[%clk 0:01:20]}  e5 {[%clk 0:01:25]} 32. Be3 {[%clk 0:01:20]}  Rd8 {[%clk 0:01:26]} 33. f3 {[%clk 0:01:19]}  Nc5 {[%clk 0:01:24]} 34. Bxc5 {[%clk 0:01:19]}  Rxc5 {[%clk 0:01:24]} 35. Kh3 {[%clk 0:01:11]}  Rc4 {[%clk 0:01:25]} 36. Ra3 {[%clk 0:01:10]}  Kc6 {[%clk 0:01:23]} 37. g4 {[%clk 0:01:04]}  Rg8 {[%clk 0:01:21]} 38. gxh5 {[%clk 0:01:01]}  Rh8 {[%clk 0:01:21]} 39. Ra1 {[%clk 0:00:49]}  Rxh5 {[%clk 0:01:21]} 40. Rg1 {[%clk 0:00:48]}  Rcxh4+ {[%clk 0:01:20]} 41. Kg3 {[%clk 0:00:49]}  Rxa4 {[%clk 0:01:20]} 42. Rgd1 {[%clk 0:00:45]}  e4 {[%clk 0:01:06]} 43. fxe4 {[%clk 0:00:41]}  Rxe4 {[%clk 0:01:06]} 44. Rf3 {[%clk 0:00:41]}  f5 {[%clk 0:01:01]} 45. Rdf1 {[%clk 0:00:40]}  Rc4 {[%clk 0:00:58]} 46. Re3 {[%clk 0:00:35]}  f4+ {[%clk 0:00:50]} 47. Rxf4 {[%clk 0:00:34]}  Rxf4 {[%clk 0:00:50]} 48. Kxf4 {[%clk 0:00:35]}  Rh2 {[%clk 0:00:51]} 49. Ke5 {[%clk 0:00:32]}  Rxc2 {[%clk 0:00:50]} 50. Rd3 {[%clk 0:00:32]}  a4 {[%clk 0:00:49]} 51. Rh3 {[%clk 0:00:27]}  Kc5 {[%clk 0:00:46]} 52. Rh8 {[%clk 0:00:26]}  Re2+ {[%clk 0:00:46]} 53. Kf4 {[%clk 0:00:26]}  Kc4 {[%clk 0:00:46]} 54. Rb8 {[%clk 0:00:23]}  b5 {[%clk 0:00:45]} 55. Rc8+ {[%clk 0:00:22]}  Kb3 {[%clk 0:00:46]} 56. Rc5 {[%clk 0:00:23]}  a3 {[%clk 0:00:44]} 57. Rxb5+ {[%clk 0:00:23]}  Kxc3 {[%clk 0:00:39]} 58. Rxd5 {[%clk 0:00:20]}  a2 {[%clk 0:00:37]} 0-1


[Site "https://www.chess.com"]

[Event "Titled Tuesday Blitz August 1 Late 2023"]
[White "Timerkhanov, Alexander"]
[Black "CatLivesMatter"]
[WhiteFideId "24177938"]
[WhiteElo "2631"]
[BlackElo "2449"]
[Result "1-0"]
[Round "3"]
[TimeControl "180+1"]
[Date "2023.08.01"]
[WhiteClock "0:02:03"]
[BlackClock "0:00:22"]
[Board "77"]

1. d4 {[%clk 0:03:00]}  a6 {[%clk 0:03:00]} 2. e4 {[%clk 0:03:00]}  e6 {[%clk 0:03:00]} 3. Bd3 {[%clk 0:03:01]}  d5 {[%clk 0:03:01]} 4. e5 {[%clk 0:03:00]}  c5 {[%clk 0:03:00]} 5. c3 {[%clk 0:03:00]}  Nc6 {[%clk 0:03:01]} 6. Nf3 {[%clk 0:03:00]}  Nge7 {[%clk 0:02:59]} 7. O-O {[%clk 0:03:00]}  cxd4 {[%clk 0:02:56]} 8. cxd4 {[%clk 0:03:00]}  Nf5 {[%clk 0:02:56]} 9. Bxf5 {[%clk 0:03:00]}  exf5 {[%clk 0:02:56]} 10. Nc3 {[%clk 0:03:01]}  Be6 {[%clk 0:02:56]} 11. Bg5 {[%clk 0:03:00]}  Be7 {[%clk 0:02:56]} 12. Bxe7 {[%clk 0:03:00]}  Qxe7 {[%clk 0:02:56]} 13. a3 {[%clk 0:03:01]}  g5 {[%clk 0:02:55]} 14. b4 {[%clk 0:02:57]}  g4 {[%clk 0:02:55]} 15. Ne1 {[%clk 0:02:57]}  h5 {[%clk 0:02:53]} 16. Na4 {[%clk 0:02:56]}  h4 {[%clk 0:02:52]} 17. f4 {[%clk 0:02:54]}  h3 {[%clk 0:02:27]} 18. g3 {[%clk 0:02:53]}  O-O-O {[%clk 0:02:26]} 19. Nc2 {[%clk 0:02:52]}  Kb8 {[%clk 0:02:25]} 20. Ne3 {[%clk 0:02:52]}  f6 {[%clk 0:02:23]} 21. Nc5 {[%clk 0:02:52]}  fxe5 {[%clk 0:02:22]} 22. fxe5 {[%clk 0:02:53]}  Qg5 {[%clk 0:02:19]} 23. Rf4 {[%clk 0:02:53]}  Bc8 {[%clk 0:02:16]} 24. Qd3 {[%clk 0:02:52]}  Rhf8 {[%clk 0:02:07]} 25. Rc1 {[%clk 0:02:51]}  Qh6 {[%clk 0:01:49]} 26. Qc3 {[%clk 0:02:40]}  Ka7 {[%clk 0:01:15]} 27. a4 {[%clk 0:02:38]}  b6 {[%clk 0:00:49]} 28. b5 {[%clk 0:02:27]}  axb5 {[%clk 0:00:46]} 29. axb5 {[%clk 0:02:28]}  Na5 {[%clk 0:00:44]} 30. Nb3 {[%clk 0:02:27]}  Nxb3 {[%clk 0:00:30]} 31. Qxb3 {[%clk 0:02:25]}  Bb7 {[%clk 0:00:30]} 32. Ra1+ {[%clk 0:02:09]}  Kb8 {[%clk 0:00:30]} 33. Qa3 {[%clk 0:02:09]}  Rc8 {[%clk 0:00:18]} 34. Qa7+ {[%clk 0:02:08]}  Kc7 {[%clk 0:00:18]} 35. Nxd5+ {[%clk 0:02:05]}  Kd8 {[%clk 0:00:17]} 36. Qxb7 {[%clk 0:02:05]}  Qe6 {[%clk 0:00:17]} 37. Qxb6+ {[%clk 0:02:03]}  Qxb6 {[%clk 0:00:16]} 38. Nxb6 {[%clk 0:02:04]}  Rb8 {[%clk 0:00:17]} 39. Nd5 {[%clk 0:02:02]}  Rxb5 {[%clk 0:00:17]} 40. Ra8+ {[%clk 0:02:01]}  Kd7 {[%clk 0:00:18]} 41. Rxf8 {[%clk 0:02:01]}  Rxd5 {[%clk 0:00:19]} 42. R8xf5 {[%clk 0:02:01]}  Rb5 {[%clk 0:00:19]} 43. Rxg4 {[%clk 0:02:01]}  Rb1+ {[%clk 0:00:18]} 44. Rf1 {[%clk 0:02:02]}  Rb2 {[%clk 0:00:19]} 45. Rh4 {[%clk 0:02:01]}  Rg2+ {[%clk 0:00:19]} 46. Kh1 {[%clk 0:02:02]}  Ke6 {[%clk 0:00:19]} 47. Rxh3 {[%clk 0:02:02]}  Re2 {[%clk 0:00:20]} 48. g4 {[%clk 0:02:02]}  Kd5 {[%clk 0:00:21]} 49. Rg3 {[%clk 0:02:02]}  Kxd4 {[%clk 0:00:21]} 50. g5 {[%clk 0:02:02]}  Kxe5 {[%clk 0:00:20]} 51. g6 {[%clk 0:02:02]}  Ke4 {[%clk 0:00:19]} 52. g7 {[%clk 0:02:02]}  Kd4 {[%clk 0:00:20]} 53. g8=Q {[%clk 0:02:03]}  Re5 {[%clk 0:00:20]} 54. Qg7 {[%clk 0:02:02]}  Ke4 {[%clk 0:00:19]} 55. Re1+ {[%clk 0:02:02]}  Kd4 {[%clk 0:00:19]} 56. Qxe5+ {[%clk 0:02:02]}  Kc4 {[%clk 0:00:20]} 57. Rc3+ {[%clk 0:02:03]}  Kb4 {[%clk 0:00:21]} 58. Qc5+ {[%clk 0:02:03]}  Ka4 {[%clk 0:00:22]} 59. Ra3# {[%clk 0:02:03]} 1-0


[Site "https://www.chess.com"]

[Event "Titled Tuesday Blitz August 1 Late 2023"]
[White "Zhukova, Natalia"]
[Black "brm72"]
[WhiteFideId "14101513"]
[WhiteElo "2442"]
[BlackElo "2603"]
[Result "0-1"]
[Round "3"]
[TimeControl "180+1"]
[Date "2023.08.01"]
[WhiteClock "0:00:00"]
[BlackClock "0:01:15"]
[Board "81"]

1. c4 {[%clk 0:03:00]}  c5 {[%clk 0:02:59]} 2. Nf3 {[%clk 0:03:00]}  Nc6 {[%clk 0:02:59]} 3. d4 {[%clk 0:03:00]}  cxd4 {[%clk 0:03:00]} 4. Nxd4 {[%clk 0:03:00]}  Nf6 {[%clk 0:03:01]} 5. Nc3 {[%clk 0:03:00]}  e6 {[%clk 0:03:01]} 6. e4 {[%clk 0:02:57]}  Bc5 {[%clk 0:02:59]} 7. Nb3 {[%clk 0:02:54]}  Bb4 {[%clk 0:02:56]} 8. Bd3 {[%clk 0:02:42]}  O-O {[%clk 0:02:56]} 9. O-O {[%clk 0:02:42]}  d6 {[%clk 0:02:41]} 10. Ne2 {[%clk 0:02:17]}  h6 {[%clk 0:02:36]} 11. a3 {[%clk 0:02:11]}  Bc5 {[%clk 0:02:36]} 12. Nxc5 {[%clk 0:02:02]}  dxc5 {[%clk 0:02:37]} 13. b4 {[%clk 0:01:29]}  cxb4 {[%clk 0:02:30]} 14. Bb2 {[%clk 0:01:30]}  e5 {[%clk 0:02:22]} 15. Ng3 {[%clk 0:01:03]}  bxa3 {[%clk 0:02:02]} 16. Rxa3 {[%clk 0:01:04]}  Qe7 {[%clk 0:01:53]} 17. Qa1 {[%clk 0:01:03]}  Rd8 {[%clk 0:01:51]} 18. Nf5 {[%clk 0:00:54]}  Bxf5 {[%clk 0:01:50]} 19. exf5 {[%clk 0:00:55]}  a6 {[%clk 0:01:46]} 20. Re1 {[%clk 0:00:55]}  Qb4 {[%clk 0:01:22]} 21. Bxe5 {[%clk 0:00:32]}  Nxe5 {[%clk 0:01:23]} 22. Rxe5 {[%clk 0:00:32]}  Re8 {[%clk 0:01:23]} 23. Ra2 {[%clk 0:00:13]}  Rxe5 {[%clk 0:01:17]} 24. Qxe5 {[%clk 0:00:14]}  Re8 {[%clk 0:01:17]} 25. Qb2 {[%clk 0:00:11]}  Re1+ {[%clk 0:01:16]} 26. Bf1 {[%clk 0:00:00]}  Qxc4 {[%clk 0:01:15]} 0-1


[Site "https://www.chess.com"]

[Event "Titled Tuesday Blitz August 1 Late 2023"]
[White "Ozates, Tuna"]
[Black "Rama, Tejas"]
[WhiteFideId "6354521"]
[BlackFideId "30907381"]
[WhiteElo "2601"]
[BlackElo "2441"]
[Result "1-0"]
[Round "3"]
[TimeControl "180+1"]
[Date "2023.08.01"]
[WhiteClock "0:00:32"]
[BlackClock "0:00:03"]
[Board "82"]

1. e4 {[%clk 0:03:00]}  e5 {[%clk 0:02:53]} 2. Nc3 {[%clk 0:02:59]}  Nf6 {[%clk 0:02:53]} 3. g3 {[%clk 0:03:00]}  d5 {[%clk 0:02:52]} 4. exd5 {[%clk 0:03:01]}  Nxd5 {[%clk 0:02:53]} 5. Bg2 {[%clk 0:03:01]}  Nxc3 {[%clk 0:02:54]} 6. bxc3 {[%clk 0:03:02]}  Nc6 {[%clk 0:02:54]} 7. Nf3 {[%clk 0:03:03]}  Bd6 {[%clk 0:02:54]} 8. O-O {[%clk 0:03:03]}  O-O {[%clk 0:02:54]} 9. d4 {[%clk 0:03:04]}  Bf5 {[%clk 0:02:53]} 10. Rb1 {[%clk 0:03:03]}  Rb8 {[%clk 0:02:53]} 11. Re1 {[%clk 0:03:02]}  exd4 {[%clk 0:02:49]} 12. cxd4 {[%clk 0:03:01]}  Qd7 {[%clk 0:02:48]} 13. Rb3 {[%clk 0:02:46]}  Nb4 {[%clk 0:02:21]} 14. Ne5 {[%clk 0:02:34]}  Bxe5 {[%clk 0:01:46]} 15. Rxb4 {[%clk 0:02:32]}  c5 {[%clk 0:01:46]} 16. Rxe5 {[%clk 0:01:54]}  cxb4 {[%clk 0:01:44]} 17. Rd5 {[%clk 0:01:55]}  Bg4 {[%clk 0:01:24]} 18. Qd3 {[%clk 0:01:44]}  Qa4 {[%clk 0:01:20]} 19. h3 {[%clk 0:01:40]}  Be6 {[%clk 0:01:10]} 20. Rh5 {[%clk 0:01:40]}  g6 {[%clk 0:01:06]} 21. Rh4 {[%clk 0:01:37]}  Rbc8 {[%clk 0:00:58]} 22. Be4 {[%clk 0:01:32]}  Qxa2 {[%clk 0:00:52]} 23. d5 {[%clk 0:01:18]}  Qa1 {[%clk 0:00:40]} 24. dxe6 {[%clk 0:01:17]}  Qxc1+ {[%clk 0:00:40]} 25. Kg2 {[%clk 0:01:14]}  Qb2 {[%clk 0:00:22]} 26. exf7+ {[%clk 0:01:10]}  Kg7 {[%clk 0:00:22]} 27. Qe3 {[%clk 0:01:06]}  Rxf7 {[%clk 0:00:19]} 28. Qh6+ {[%clk 0:01:05]}  Kh8 {[%clk 0:00:14]} 29. Bxg6 {[%clk 0:00:56]}  Rc6 {[%clk 0:00:08]} 30. Re4 {[%clk 0:00:37]}  Rg7 {[%clk 0:00:03]} 31. Re8+ {[%clk 0:00:32]} 1-0


[Site "https://www.chess.com"]